fUST/lending_fUST_20240830
["ID","MTS","AMOUNT","RATE_DAILY","PERIOD"]
[336549670,1724950244074,-1520.39,0.00019452,2]
[336549671,1724950244083,-500.0,0.00019452,2]
[336549672,1724950244094,-172.14993318,0.00019452,2]
[336549673,1724950244104,-500.0,0.00019452,2]
[336549674,1724950244113,-952.89,0.00019452,2]
[336549675,1724950244123,-500.0,0.00019452,2]
[336549676,1724950244133,-500.0,0.00019452,2]
[336549677,1724950244142,-500.0,0.00019452,2]
[336549678,1724950244152,-632.43269414,0.00019452,2]
[336549679,1724950244161,-596.01,0.00019452,2]
[336549680,1724950244171,-500.0,0.00019452,2]
[336549681,1724950244180,-500.0,0.00019452,2]
[336549682,1724950244190,-500.0,0.00019452,2]
[336549683,1724950244200,-500.0,0.00019452,2]
[336549684,1724950244209,-1430.71,0.00019452,2]
[336549685,1724950244219,-151.0,0.00019452,2]
[336549686,1724950244229,-500.0,0.00019452,2]
[336549687,1724950244238,-502.8699694,0.00019452,2]
[336549688,1724950244247,-7568.76,0.00019452,2]
[336549689,1724950244258,-500.0,0.00019452,2]
[336549690,1724950244268,-2654.59,0.00019452,2]
[336549691,1724950244277,-500.0,0.00019452,2]
[336549692,1724950244287,-976.56,0.00019452,2]
[336549693,1724950244297,-500.0,0.00019452,2]
[336549694,1724950244308,-500.0,0.00019452,2]
[336549695,1724950244320,-4550.82,0.00019452,2]
[336549696,1724950244330,-500.0,0.00019452,2]
[336549697,1724950244342,-281.309953,0.00019452,2]
[336549698,1724950244351,-501.42509951,0.00019452,2]
[336549699,1724950244361,-500.0,0.00019452,2]
[336549700,1724950244371,-500.0,0.00019452,2]
[336549701,1724950244381,-500.0,0.00019452,2]
[336549702,1724950244391,-500.0,0.00019452,2]
[336549703,1724950244401,-500.0,0.00019452,2]
[336549704,1724950244411,-500.0,0.00019452,2]
[336549705,1724950244420,-500.0,0.00019452,2]
[336549706,1724950244429,-500.0,0.00019452,2]
[336549707,1724950244439,-575.88,0.00019452,2]
[336549708,1724950244448,-500.0,0.00019452,2]
[336549709,1724950244458,-500.0,0.00019452,2]
[336549710,1724950244468,-500.0,0.00019452,2]
[336549711,1724950244477,-500.0,0.00019452,2]
[336549712,1724950244487,-500.0,0.00019452,2]
[336549713,1724950244497,-500.0,0.00019452,2]
[336549714,1724950244508,-500.0,0.00019452,2]
[336549715,1724950244518,-500.0,0.00019452,2]
[336549716,1724950244527,-1119.98,0.00019452,2]
[336549717,1724950244537,-500.0,0.00019452,2]
[336549718,1724950244546,-500.0,0.00019452,2]
[336549719,1724950244555,-500.0,0.00019452,2]
[336549720,1724950244565,-1124.69,0.00019452,2]
[336549721,1724950244574,-182.293782,0.00019452,2]
[336549722,1724950244583,-641.54,0.00019452,2]
[336549723,1724950244593,-1833.06,0.00019452,2]
[336549724,1724950244603,-500.0,0.00019452,2]
[336549725,1724950244613,-500.0,0.00019452,2]
[336549726,1724950244622,-1035.31,0.00019452,2]
[336549727,1724950244631,-500.0,0.00019452,2]
[336549728,1724950244641,-4000.0,0.00019452,2]
[336549729,1724950244651,-1335.71,0.00019452,2]
[336549730,1724950244660,-500.0,0.00019452,2]
[336549731,1724950244669,-745.05,0.00019452,2]
[336549732,1724950244679,-500.0,0.00019452,2]
[336549733,1724950244688,-500.0,0.00019452,2]
[336549734,1724950244697,-500.0,0.00019452,2]
[336549735,1724950244707,-500.0,0.00019452,2]
[336549736,1724950244717,-500.0,0.00019452,2]
[336549737,1724950244726,-500.0,0.00019452,2]
[336549738,1724950244736,-500.0,0.00019452,2]
[336549739,1724950244746,-500.0,0.00019452,2]
[336549740,1724950244756,-164.66366064,0.00019452,2]
[336549741,1724950244871,-335.33633936,0.00019452,2]
[336549742,1724950244883,-500.0,0.00019452,2]
[336549743,1724950244892,-462.58647167,0.00019452,2]
[336549744,1724950244901,-500.0,0.00019452,2]
[336549745,1724950244910,-500.0,0.00019452,2]
[336549746,1724950244920,-500.0,0.00019452,2]
[336549747,1724950244929,-500.0,0.00019452,2]
[336549748,1724950244939,-330.90053697,0.00019452,2]
[336549749,1724950244949,-500.0,0.00019452,2]
[336549750,1724950244959,-500.0,0.00019452,2]
[336549751,1724950244968,-500.0,0.00019452,2]
[336549752,1724950244977,-500.0,0.00019452,2]
[336549753,1724950244988,-500.0,0.00019452,2]
[336549754,1724950244999,-737.8,0.00019452,2]
[336549755,1724950245010,-500.0,0.00019452,2]
[336549756,1724950245020,-500.0,0.00019452,2]
[336549757,1724950245030,-500.0,0.00019452,2]
[336549758,1724950245041,-500.0,0.00019452,2]
[336549760,1724950245053,-500.0,0.00019452,2]
[336549762,1724950245064,-10509.084703,0.00019452,2]
[336549764,1724950245078,-933.92118199,0.00019452,2]
[336549768,1724950245098,-6407.88468952,0.00019452,2]
[336549770,1724950245111,-817.73942549,0.00019452,2]
[336549772,1724950245125,-500.0,0.00019452,2]
[336549774,1724950245134,-500.0,0.00019452,2]
[336549776,1724950245144,-500.0,0.00019452,2]
[336549778,1724950245155,-500.0,0.00019452,2]
[336549780,1724950245167,-500.0,0.00019452,2]
[336549783,1724950245178,-593.3,0.00019452,2]
[336549785,1724950245188,-500.0,0.00019452,2]
[336549787,1724950245198,-500.0,0.00019452,2]
[336549789,1724950245208,-500.0,0.00019452,2]
[336549790,1724950245218,-982.4,0.00019452,2]
[336549792,1724950245227,-151.0,0.00019452,2]
[336549794,1724950245237,-294.351944,0.00019452,2]
[336549796,1724950245247,-500.0,0.00019452,2]
[336549798,1724950245258,-243.650676,0.00019452,2]
[336549800,1724950245267,-500.0,0.00019452,2]
[336549802,1724950245277,-500.0,0.00019452,2]
[336549805,1724950245287,-500.0,0.00019452,2]
[336549807,1724950245297,-500.0,0.00019452,2]
[336549809,1724950245306,-500.0,0.00019452,2]
[336549811,1724950245316,-2517.15,0.00019452,2]
[336549813,1724950245326,-500.0,0.00019452,2]
[336549815,1724950245335,-500.0,0.00019452,2]
[336549817,1724950245344,-500.0,0.00019452,2]
[336549819,1724950245354,-500.0,0.00019452,2]
[336549821,1724950245363,-500.0,0.00019452,2]
[336549823,1724950245372,-500.0,0.00019452,2]
[336549825,1724950245382,-500.0,0.00019547,7]
[336549827,1724950245393,-500.0,0.00019547,7]
[336549829,1724950245402,-405.2183819,0.00019616,2]
[336549831,1724950245411,-3485.20751931,0.00019706,2]
[336549844,1724950245520,-10185.30907159,0.00019706,2]
[336549846,1724950245532,-151.0,0.00019716,2]
[336549848,1724950245545,-19976.19092835,0.00019716,2]
[336549850,1724950245557,-7364.84225345,0.00019716,2]
[336549852,1724950245567,-500.0,0.00019726,2]
[336549855,1724950245578,-500.0,0.00019726,2]
[336549856,1724950245587,-500.0,0.00019726,2]
[336549859,1724950245597,-500.0,0.00019726,2]
[336549861,1724950245607,-500.0,0.00019726,2]
[336549863,1724950245618,-392.19,0.00019726,2]
[336549865,1724950245628,-500.0,0.00019726,2]
[336549867,1724950245640,-500.0,0.00019726,2]
[336549869,1724950245650,-500.0,0.00019726,2]
[336549871,1724950245659,-500.0,0.00019726,2]
[336549873,1724950245671,-500.0,0.00019726,2]
[336549875,1724950245680,-500.0,0.00019726,2]
[336549877,1724950245691,-151.0,0.00019726,2]
[336549880,1724950245702,-500.0,0.00019726,2]
[336549882,1724950245711,-275.09,0.00019726,2]
[336549884,1724950245721,-2506.34,0.00019726,2]
[336549886,1724950245732,-416.86184284,0.00019726,2]
[336549888,1724950245744,-598.66815716,0.00019726,2]
[336549891,1724950245755,-500.0,0.00019726,2]
[336549893,1724950245766,-1048.54,0.00019726,2]
[336549895,1724950245776,-290.78782472,0.00019726,2]
[336549897,1724950245787,-892.22890917,0.00019726,2]
[336549904,1724950245988,-171.42326611,0.00019726,2]
[336549905,1724950246000,-500.0,0.00019726,2]
[336549906,1724950246010,-500.0,0.00019726,2]
[336549907,1724950246020,-1520.39,0.00019726,2]
[336549908,1724950246031,-952.89,0.00019726,2]
[336549909,1724950246043,-500.0,0.00019726,2]
[336549910,1724950246054,-1430.71,0.00019726,2]
[336549911,1724950246065,-415.01084224,0.00019726,2]
[336549912,1724950246078,-2607.83104133,0.00019726,2]
[336549913,1724950246111,-4545.91811643,0.00019726,2]
[336549914,1724950246123,-2654.59,0.00019726,2]
[336549915,1724950246133,-500.0,0.00019726,2]
[336549917,1724950246143,-976.56,0.00019726,2]
[336549919,1724950246152,-4550.82,0.00019726,2]
[336549921,1724950246162,-500.0,0.00019726,2]
[336549923,1724950246171,-500.0,0.00019726,2]
[336549925,1724950246181,-500.0,0.00019726,2]
[336549927,1724950246191,-358.93527288,0.00019726,2]
[336549929,1724950246201,-500.0,0.00019726,2]
[336549931,1724950246212,-500.0,0.00019726,2]
[336549933,1724950246222,-500.0,0.00019726,2]
[336549935,1724950246232,-500.0,0.00019726,2]
[336549937,1724950246242,-500.0,0.00019726,2]
[336549939,1724950246251,-500.0,0.00019726,2]
[336549941,1724950246261,-500.0,0.00019726,2]
[336549943,1724950246270,-500.0,0.00019726,2]
[336549945,1724950246280,-1119.98,0.00019726,2]
[336549947,1724950246289,-608.69349061,0.00019726,2]
[336549949,1724950246298,-500.0,0.00019726,2]
[336549951,1724950246308,-500.0,0.00019726,2]
[336549953,1724950246317,-1124.69,0.00019726,2]
[336549955,1724950246326,-641.54,0.00019726,2]
[336549957,1724950246337,-1833.06,0.00019726,2]
[336549958,1724950246346,-500.0,0.00019726,2]
[336549959,1724950246356,-1035.31,0.00019726,2]
[336549961,1724950246367,-1335.71,0.00019726,2]
[336549963,1724950246376,-745.05,0.00019726,2]
[336549965,1724950246385,-500.0,0.00019726,2]
[336549966,1724950246395,-183.91621503,0.00019726,2]
[336549968,1724950246406,-500.0,0.00019726,2]
[336549970,1724950246415,-500.0,0.00019726,2]
[336549971,1724950246426,-500.0,0.00019726,2]
[336549972,1724950246436,-500.0,0.00019726,2]
[336549973,1724950246446,-500.0,0.00019726,2]
[336549974,1724950246457,-500.0,0.00019726,2]
[336549975,1724950246467,-500.0,0.00019726,2]
[336549976,1724950246479,-500.0,0.00019726,2]
[336549977,1724950246582,-500.0,0.00019726,2]
[336549978,1724950246611,-500.0,0.00019726,2]
[336549979,1724950246621,-737.8,0.00019726,2]
[336549980,1724950246630,-500.0,0.00019726,2]
[336549981,1724950246639,-500.0,0.00019726,2]
[336549982,1724950246648,-500.0,0.00019726,2]
[336549983,1724950246658,-18668.63,0.00019726,2]
[336549984,1724950246667,-500.0,0.00019726,2]
[336549985,1724950246677,-500.0,0.00019726,2]
[336549986,1724950246686,-500.0,0.00019726,2]
[336549987,1724950246695,-500.0,0.00019726,2]
[336549988,1724950246705,-500.0,0.00019726,2]
[336549989,1724950246714,-551.30487318,0.00019726,2]
[336549990,1724950246724,-500.0,0.00019726,2]
[336549991,1724950246734,-982.4,0.00019726,2]
[336549992,1724950246743,-500.0,0.00019726,2]
[336549993,1724950246753,-500.0,0.00019726,2]
[336549994,1724950246763,-500.0,0.00019726,2]
[336549995,1724950246772,-500.0,0.00019726,2]
[336549996,1724950246781,-500.0,0.00019726,2]
[336549997,1724950246791,-500.0,0.00019726,2]
[336549998,1724950246800,-2517.15,0.00019726,2]
[336549999,1724950246810,-500.0,0.00019726,2]
[336550000,1724950246819,-500.0,0.00019726,2]
[336550001,1724950246829,-500.0,0.00019726,2]
[336550002,1724950246839,-500.0,0.00019726,2]
[336550003,1724950246848,-500.0,0.00019726,2]
[336550004,1724950246857,-500.0,0.00019773,2]
[336550005,1724950246867,-168.70907375,0.00019773,2]
[336550006,1724950246876,-358.88814414,0.00019773,2]
[336550007,1724950246886,-1052.19859203,0.000199,2]
[336550008,1724950246895,-600.0,0.00019931,2]
[336550009,1724950246904,-151.0,0.0001999,2]
[336550010,1724950246914,-27341.0331818,0.0001999,2]
[336550011,1724950246923,-151.0,0.0002,2]
[336550012,1724950246933,-500.0,0.0002,2]
[336550013,1724950246942,-11589.93077219,0.0002,15]
[336550014,1724950246952,-500.0,0.0002,2]
[336550015,1724950246961,-404.27930118,0.0002,2]
[336550016,1724950246970,-424.20044732,0.0002,2]
[336550017,1724950246979,-281.68,0.0002,2]
[336550018,1724950246988,-2506.34,0.0002,2]
[336550019,1724950246998,-1015.53,0.0002,2]
[336550020,1724950247007,-500.0,0.0002,2]
[336550021,1724950247017,-1048.54,0.0002,2]
[336550022,1724950247026,-1354.44,0.0002,2]
[336550023,1724950247037,-500.0,0.0002,2]
[336550024,1724950247049,-500.0,0.0002,2]
[336550025,1724950247059,-1520.39,0.0002,2]
[336550026,1724950247068,-302.27461649,0.0002,2]
[336550027,1724950247079,-952.89,0.0002,2]
[336550028,1724950247089,-500.0,0.0002,2]
[336550029,1724950247099,-1430.71,0.0002,2]
[336550030,1724950247108,-7568.76,0.0002,2]
[336550031,1724950247118,-2654.59,0.0002,2]
[336550032,1724950247129,-226.33464512,0.0002,2]
[336550033,1724950247138,-976.56,0.0002,2]
[336550034,1724950247147,-4550.82,0.0002,2]
[336550035,1724950247157,-500.0,0.0002,2]
[336550036,1724950247166,-500.0,0.0002,2]
[336550037,1724950247175,-500.0,0.0002,2]
[336550038,1724950247185,-500.0,0.0002,2]
[336550039,1724950247195,-500.0,0.0002,2]
[336550040,1724950247205,-500.0,0.0002,2]
[336550041,1724950247214,-1119.98,0.0002,2]
[336550042,1724950247223,-500.0,0.0002,2]
[336550043,1724950247232,-500.0,0.0002,2]
[336550044,1724950247242,-1124.69,0.0002,2]
[336550045,1724950247254,-641.54,0.0002,2]
[336550046,1724950247265,-1035.31,0.0002,2]
[336550047,1724950247275,-1833.06,0.0002,2]
[336550048,1724950247284,-1335.71,0.0002,2]
[336550049,1724950247295,-745.05,0.0002,2]
[336550050,1724950247307,-500.0,0.0002,2]
[336550051,1724950247317,-500.0,0.0002,2]
[336550052,1724950247327,-500.0,0.0002,2]
[336550053,1724950247339,-500.0,0.0002,2]
[336550054,1724950247348,-500.0,0.0002,2]
[336550055,1724950247358,-302.24446742,0.0002,2]
[336550057,1724950247367,-500.0,0.0002,2]
[336550059,1724950247377,-500.0,0.0002,2]
[336550061,1724950247387,-500.0,0.0002,2]
[336550063,1724950247396,-617.75649372,0.0002,2]
[336550065,1724950247407,-500.0,0.0002,2]
[336550067,1724950247417,-737.8,0.0002,2]
[336550069,1724950247427,-500.0,0.0002,2]
[336550071,1724950247436,-500.0,0.0002,2]
[336550074,1724950247448,-500.0,0.0002,2]
[336550076,1724950247459,-18668.63,0.0002,2]
[336550078,1724950247471,-302.24349787,0.0002,2]
[336550079,1724950247483,-500.0,0.0002,2]
[336550081,1724950247493,-500.0,0.0002,2]
[336550083,1724950247504,-500.0,0.0002,2]
[336550084,1724950247516,-500.0,0.0002,2]
[336550085,1724950247526,-500.0,0.0002,2]
[336550087,1724950247536,-982.4,0.0002,2]
[336550088,1724950247546,-500.0,0.0002,2]
[336550089,1724950247556,-500.0,0.0002,2]
[336550090,1724950247567,-500.0,0.0002,2]
[336550091,1724950247578,-500.0,0.0002,2]
[336550092,1724950247589,-500.0,0.0002,2]
[336550093,1724950247600,-500.0,0.0002,2]
[336550094,1724950247613,-2517.15,0.0002,2]
[336550095,1724950247624,-500.0,0.0002,2]
[336550096,1724950247636,-500.0,0.0002,2]
[336550097,1724950247648,-500.0,0.0002,2]
[336550098,1724950247661,-500.0,0.0002,2]
[336550099,1724950247672,-500.0,0.0002,2]
[336550101,1724950247682,-306.8311024,0.00020082,2]
[336550102,1724950247692,-302.27461649,0.000202,2]
[336550103,1724950247702,-302.24446742,0.000202,2]
[336550104,1724950247712,-13670.5165909,0.00020253,2]
[336550105,1724950247722,-13670.5165909,0.00020263,2]
[336550106,1724950247734,-500.0,0.00020273,2]
[336550107,1724950247744,-500.0,0.00020273,2]
[336550108,1724950247756,-2506.34,0.00020273,2]
[336550109,1724950247765,-1015.53,0.00020273,2]
[336550110,1724950247774,-500.0,0.00020273,2]
[336550111,1724950247784,-1048.54,0.00020273,2]
[336550112,1724950247793,-1354.44,0.00020273,2]
[336550113,1724950247802,-500.0,0.00020273,2]
[336550114,1724950247811,-500.0,0.00020273,2]
[336550116,1724950247821,-1520.39,0.00020273,2]
[336550118,1724950247830,-952.89,0.00020273,2]
[336550119,1724950247840,-1430.71,0.00020273,2]
[336550121,1724950247849,-7568.76,0.00020273,2]
[336550123,1724950247858,-2654.59,0.00020273,2]
[336550125,1724950247868,-976.56,0.00020273,2]
[336550127,1724950247877,-2374.76730332,0.00020273,2]
[336550129,1724950247891,-2176.05269668,0.00020273,2]
[336550131,1724950247902,-390.14310478,0.00020273,2]
[336550133,1724950247914,-109.85689522,0.00020273,2]
[336550134,1724950247923,-585.96993275,0.00020273,2]
[336550136,1724950247933,-322.02554153,0.00020273,2]
[336550138,1724950247943,-500.0,0.00020273,2]
[336550139,1724950247952,-500.0,0.00020273,2]
[336550140,1724950247961,-500.0,0.00020273,2]
[336550141,1724950247970,-1119.98,0.00020273,2]
[336550142,1724950247979,-500.0,0.00020273,2]
[336550143,1724950247989,-500.0,0.00020273,2]
[336550144,1724950247998,-1124.69,0.00020273,2]
[336550145,1724950248010,-641.54,0.00020273,2]
[336550146,1724950248019,-1035.31,0.00020273,2]
[336550147,1724950248030,-1833.06,0.00020273,2]
[336550148,1724950248044,-1335.71,0.00020273,2]
[336550149,1724950248053,-745.05,0.00020273,2]
[336550150,1724950248063,-500.0,0.00020273,2]
[336550151,1724950248072,-500.0,0.00020273,2]
[336550152,1724950248082,-312.70355636,0.00020273,2]
[336550153,1724950248092,-500.0,0.00020273,2]
[336550154,1724950248101,-500.0,0.00020273,2]
[336550155,1724950248111,-216.36664949,0.00020273,2]
[336550156,1724950248123,-500.0,0.00020273,2]
[336550157,1724950248133,-500.0,0.00020273,2]
[336550158,1724950248143,-500.0,0.00020273,2]
[336550159,1724950248152,-737.8,0.00020273,2]
[336550160,1724950248162,-500.0,0.00020273,2]
[336550161,1724950248173,-500.0,0.00020273,2]
[336550162,1724950248183,-18668.63,0.00020273,2]
[336550163,1724950248192,-500.0,0.00020273,2]
[336550164,1724950248202,-500.0,0.00020273,2]
[336550165,1724950248212,-500.0,0.00020273,2]
[336550166,1724950248222,-500.0,0.00020273,2]
[336550167,1724950248232,-982.4,0.00020273,2]
[336550168,1724950248241,-498.87616482,0.00020273,2]
[336550169,1724950248250,-500.0,0.00020273,2]
[336550170,1724950248262,-500.0,0.00020273,2]
[336550171,1724950248272,-500.0,0.00020273,2]
[336550172,1724950248282,-2517.15,0.00020273,2]
[336550173,1724950248292,-591.11,0.00020273,2]
[336550174,1724950248302,-500.0,0.00020273,2]
[336550175,1724950248311,-500.0,0.00020273,2]
[336550176,1724950248322,-500.0,0.00020273,2]
[336550177,1724950248332,-1000.0,0.00020321,2]
[336550178,1724950248344,-302.27461649,0.000204,2]
[336550179,1724950248354,-302.24446742,0.000204,2]
[336550180,1724950248365,-156.57515201,0.00020447,2]
[336550181,1724950248375,-156.57515201,0.00020447,2]
[336550182,1724950248385,-156.57515201,0.00020447,2]
[336550183,1724950248394,-156.57515201,0.00020447,2]
[336550184,1724950248404,-156.57515201,0.00020447,2]
[336550185,1724950248413,-156.57515201,0.00020447,2]
[336550186,1724950248423,-156.57515201,0.00020447,2]
[336550187,1724950248434,-156.57515201,0.00020447,2]
[336550188,1724950248444,-156.57515201,0.00020447,2]
[336550189,1724950248453,-156.57515201,0.00020447,2]
[336550190,1724950248462,-156.57515201,0.00020447,2]
[336550191,1724950248472,-157.07,0.00020447,2]
[336550192,1724950248482,-527.44,0.00020528,3]
[336550193,1724950248491,-830.34464378,0.00020546,2]
[336550194,1724950248500,-204.96319221,0.00020547,2]
[336550195,1724950248513,-500.0,0.00020547,2]
[336550196,1724950248523,-2506.34,0.00020547,2]
[336550197,1724950248533,-1015.53,0.00020547,2]
[336550198,1724950248543,-500.0,0.00020547,2]
[336550199,1724950248553,-1048.54,0.00020547,2]
[336550200,1724950248563,-1354.44,0.00020547,2]
[336550201,1724950248572,-500.0,0.00020547,2]
[336550202,1724950248581,-213.25117899,0.00020547,2]
[336550203,1724950248591,-1520.39,0.00020547,2]
[336550204,1724950248601,-952.89,0.00020547,2]
[336550205,1724950248610,-1430.71,0.00020547,2]
[336550206,1724950248620,-7568.76,0.00020547,2]
[336550207,1724950248632,-2654.59,0.00020547,2]
[336550208,1724950248643,-976.56,0.00020547,2]
[336550209,1724950248653,-4550.82,0.00020547,2]
[336550210,1724950248663,-450.91755833,0.00020547,2]
[336550211,1724950248674,-500.0,0.00020547,2]
[336550212,1724950248684,-500.0,0.00020547,2]
[336550213,1724950248694,-500.0,0.00020547,2]
[336550214,1724950248703,-1119.98,0.00020547,2]
[336550215,1724950248713,-500.0,0.00020547,2]
[336550216,1724950248724,-1124.69,0.00020547,2]
[336550217,1724950248734,-641.54,0.00020547,2]
[336550218,1724950248744,-1035.31,0.00020547,2]
[336550219,1724950248759,-1833.06,0.00020547,2]
[336550220,1724950248771,-1335.71,0.00020547,2]
[336550221,1724950248780,-745.05,0.00020547,2]
[336550222,1724950248790,-500.0,0.00020547,2]
[336550223,1724950248801,-500.0,0.00020547,2]
[336550224,1724950248811,-500.0,0.00020547,2]
[336550225,1724950248821,-500.0,0.00020547,2]
[336550226,1724950248832,-500.0,0.00020547,2]
[336550227,1724950248843,-500.0,0.00020547,2]
[336550228,1724950248852,-737.8,0.00020547,2]
[336550229,1724950248862,-500.0,0.00020547,2]
[336550230,1724950248872,-500.0,0.00020547,2]
[336550231,1724950248881,-18668.63,0.00020547,2]
[336550232,1724950248890,-500.0,0.00020547,2]
[336550233,1724950248900,-500.0,0.00020547,2]
[336550234,1724950248910,-504.5,0.00020547,2]
[336550235,1724950248920,-500.0,0.00020547,2]
[336550236,1724950248929,-982.4,0.00020547,2]
[336550237,1724950248939,-500.0,0.00020547,2]
[336550238,1724950248948,-500.0,0.00020547,2]
[336550239,1724950248957,-500.0,0.00020547,2]
[336550240,1724950248967,-2517.15,0.00020547,2]
[336550241,1724950248977,-500.0,0.00020547,2]
[336550242,1724950248986,-254.74762208,0.00020547,2]
[336550243,1724950248997,-500.0,0.00020547,2]
[336550244,1724950249007,-4761.32,0.000206,2]
[336550245,1724950249017,-2764.32,0.000206,2]
[336550246,1724950249026,-302.27461649,0.000206,2]
[336550247,1724950249037,-302.24446742,0.000206,2]
[336550248,1724950249052,-484.97173292,0.00020685,2]
[336550249,1724950249062,-292.759259,0.00020707,2]
[336550250,1724950249073,-302.27461649,0.000208,2]
[336550251,1724950249085,-302.24446742,0.000208,2]
[336550252,1724950249095,-500.0,0.00020821,2]
[336550253,1724950249105,-2506.34,0.00020821,2]
[336550254,1724950249115,-1015.53,0.00020821,2]
[336550255,1724950249126,-500.0,0.00020821,2]
[336550256,1724950249136,-357.95783307,0.00020821,2]
[336550263,1724951014991,701.53,0.000175,2]
[336550264,1724951039559,574.98,0.00023,60]
[336550265,1724951163029,263.483333,0.00014247,2]
[336550266,1724951227143,-451.2325419,0.00018056,2]
[336550267,1724951227166,-184.3644178,0.00018154,2]
[336550268,1724951227190,-200.266964,0.0001817,2]
[336550269,1724951227219,-205.35970468,0.00018269,2]
[336550270,1724951227243,-294.993759,0.00018912,2]
[336550271,1724951227268,-102.71826817,0.00018912,2]
[336550272,1724951228091,-51.80341883,0.00018912,2]
[336550273,1724951228113,-300.0,0.00019077,2]
[336550274,1724951228136,-1103.00107135,0.00019078,2]
[336550298,1724951431966,-393.9566515,0.00019078,2]
[336550299,1724951431984,-5087.9293109,0.00019078,2]
[336550300,1724951431995,-815.74921758,0.00019078,2]
[336550301,1724951432011,-1184.25078242,0.00019078,2]
[336550302,1724951432025,-300.0,0.00019167,2]
[336550304,1724951432036,-1551.77,0.00019168,3]
[336550305,1724951432050,-775.88,0.00019168,3]
[336550306,1724951432062,-387.94,0.00019168,3]
[336550307,1724951432076,-193.97,0.00019168,3]
[336550308,1724951432089,-581.94,0.00019168,3]
[336550309,1724951432103,-26816.3825397,0.00019168,2]
[336550310,1724951432118,-225.12559467,0.00019173,2]
[336550311,1724951432131,-500.0,0.00019173,2]
[336550312,1724951432146,-500.09313909,0.00019173,2]
[336550313,1724951432159,-500.0,0.00019173,2]
[336550314,1724951432171,-500.0,0.00019173,2]
[336550315,1724951432182,-398.99160986,0.00019177,2]
[336550316,1724951432193,-178.87298108,0.00019177,2]
[336550317,1724951432204,-500.0,0.00019177,2]
[336550318,1724951432216,-500.0,0.00019177,2]
[336550319,1724951432229,-425.63190288,0.00019177,2]
[336550320,1724951432241,-500.0,0.00019177,2]
[336550321,1724951432254,-500.0,0.00019177,2]
[336550322,1724951432267,-500.0,0.00019177,2]
[336550323,1724951432278,-500.0,0.00019177,2]
[336550324,1724951432290,-500.0,0.00019178,2]
[336550325,1724951432304,-500.0,0.00019178,2]
[336550326,1724951432316,-235.76265566,0.00019178,2]
[336550327,1724951432328,-500.0,0.00019178,2]
[336550328,1724951432339,-500.0,0.00019178,2]
[336550329,1724951432351,-500.0,0.00019178,2]
[336550330,1724951432361,-500.0,0.00019178,2]
[336550331,1724951432378,-500.0,0.00019178,2]
[336550332,1724951432390,-500.0,0.00019178,2]
[336550333,1724951432402,-222.83622832,0.00019178,2]
[336550334,1724951432415,-500.0,0.00019178,2]
[336550335,1724951432429,-500.0,0.00019178,2]
[336550336,1724951432445,-500.0,0.00019178,2]